bitfinex/quotes_BTCUSD_20240906
["timestamp","ask_amount","ask_price","bid_price","bid_amount"]
[1725639327354,0.459698,54266.0,54259.0,0.39848556]
[1725639327797,0.09114,54266.0,54262.0,0.5941]
[1725639328041,0.09114,54266.0,54263.0,0.368574]
[1725639328262,0.09114,54266.0,54264.0,0.023]
[1725639328488,0.09114,54266.0,54264.0,0.207283]
[1725639328711,0.09114,54266.0,54265.0,0.3976]
[1725639328944,0.09114,54266.0,54265.0,0.4206]
[1725639329423,0.09114,54266.0,54265.0,0.45761]
[1725639329661,0.09214,54266.0,54265.0,0.45761]
[1725639329886,0.09114,54266.0,54265.0,0.45761]
[1725639330108,0.09114,54266.0,54265.0,2.24945567]
[1725639330324,0.000815,54269.0,54268.0,1.160462]
[1725639330535,0.000815,54269.0,54268.0,1.96464711]
[1725639330763,0.000815,54269.0,54268.0,1.58410611]
[1725639330979,0.000815,54269.0,54268.0,1.184221]
[1725639331410,0.000815,54269.0,54268.0,0.63141]
[1725639331838,0.000815,54269.0,54268.0,0.81568]
[1725639332061,0.000815,54269.0,54268.0,1.21619872]
[1725639332761,0.001815,54269.0,54268.0,1.59673972]
[1725639332983,0.001815,54269.0,54268.0,1.22819872]
[1725639333434,0.001815,54269.0,54268.0,1.59673972]
[1725639333648,0.001815,54269.0,54268.0,0.64341]
[1725639333878,0.555616,54269.0,54268.0,0.5864]
[1725639334340,0.187082,54269.0,54268.0,0.5864]
[1725639334555,0.555616,54269.0,54268.0,0.5864]
[1725639334968,0.92415,54269.0,54268.0,0.5864]
[1725639335454,0.555616,54269.0,54268.0,0.5864]
[1725639335902,0.92415,54269.0,54268.0,0.3963]
[1725639336135,0.002815,54269.0,54268.0,0.43331]
[1725639336361,0.187082,54269.0,54268.0,0.43331]
[1725639337013,0.002815,54269.0,54268.0,1.009121]
[1725639337234,0.002815,54269.0,54268.0,0.64058]
[1725639337887,0.002815,54269.0,54268.0,1.564362]
[1725639338102,0.002815,54269.0,54268.0,1.195821]
[1725639338323,0.002815,54269.0,54268.0,1.59563503]
[1725639338552,0.002815,54269.0,54268.0,0.85855303]
[1725639338764,0.002815,54269.0,54268.0,0.901144]
[1725639338979,0.002815,54269.0,54268.0,1.195821]
[1725639339240,0.002815,54269.0,54268.0,1.22709403]
[1725639339731,0.002815,54269.0,54268.0,1.97417603]
[1725639339963,0.002815,54269.0,54268.0,1.59563503]
[1725639340669,0.002815,54269.0,54268.0,0.64301]
[1725639340902,0.187082,54269.0,54268.0,0.583]
[1725639341157,0.92415,54269.0,54268.0,0.3963]
[1725639341387,0.92415,54269.0,54268.0,0.015]
[1725639341881,1.592384,54269.0,54268.0,0.015]
[1725639342118,1.592384,54269.0,54245.0,0.18852]
[1725639342119,0.184301,54259.0,54245.0,0.00162]
[1725639342359,1.23895356,54259.0,54245.0,0.00162]
[1725639342592,2.07615756,54259.0,54245.0,0.00162]
[1725639343325,2.65495756,54259.0,54245.0,0.00162]
[1725639343331,3.20911982,54259.0,54245.0,0.00162]
[1725639343575,1.60786356,54246.0,54245.0,0.00162]
[1725639343812,1.70786356,54246.0,54245.0,0.00162]
[1725639344281,1.73675429,54246.0,54245.0,0.00162]
[1725639344508,0.68192573,54246.0,54245.0,0.00162]
[1725639344726,0.001,54246.0,54245.0,0.58902]
[1725639344959,0.001,54246.0,54245.0,0.773368]
[1725639345401,0.001,54246.0,54245.0,1.202075]
[1725639345627,0.002,54246.0,54245.0,1.202075]
[1725639345859,0.002,54246.0,54245.0,0.61202]
[1725639346078,0.002,54246.0,54245.0,0.833378]
[1725639346324,0.002,54246.0,54245.0,0.830378]
[1725639346325,0.001,54246.0,54245.0,0.830378]
[1725639346551,0.001,54246.0,54245.0,1.199075]
[1725639346764,0.002,54246.0,54245.0,1.199075]
[1725639347043,0.001,54246.0,54245.0,1.199075]
[1725639347270,0.002,54246.0,54245.0,1.199075]
[1725639347685,0.184321,54253.0,54248.0,0.184337]
[1725639347895,0.368631,54255.0,54250.0,0.03701]
[1725639348109,0.3974794,54261.0,54250.0,0.03701]
[1725639348110,0.368616,54257.0,54250.0,0.03701]
[1725639348329,0.3974794,54261.0,54250.0,0.03701]
[1725639348330,0.184326,54252.0,54250.0,0.03701]
[1725639348545,0.0288884,54261.0,54249.0,0.023]
[1725639348546,0.184331,54250.0,54249.0,0.023]
[1725639348973,0.184331,54250.0,54245.0,0.770366]
[1725639348974,0.184338,54248.0,54247.0,0.06001]
[1725639349197,0.921692,54248.0,54247.0,0.06001]
[1725639349423,0.369643,54253.0,54245.0,0.38632]
[1725639349424,0.184345,54246.0,54245.0,0.38632]
[1725639349855,0.001,54246.0,54245.0,0.38632]
[1725639350095,0.184345,54246.0,54245.0,0.42333]
[1725639350324,0.368663,54251.0,54247.0,0.03701]
[1725639350543,0.010815,54269.0,54247.0,0.958717]
[1725639350544,0.001,54248.0,54247.0,0.958717]
[1725639350799,0.184305,54258.0,54252.0,0.03701]
[1725639351037,0.184305,54258.0,54247.0,0.98997915]
[1725639351038,0.1,54262.0,54257.0,0.184307]
[1725639351294,0.184292,54262.0,54258.0,0.4183]
[1725639351528,0.478815,54269.0,54258.0,0.4183]
[1725639351529,0.368566,54265.0,54258.0,0.4183]
[1725639351753,0.368541,54268.0,54258.0,0.4183]
[1725639351969,0.368541,54268.0,54258.0,0.45531]
[1725639351970,0.368588,54262.0,54258.0,0.45531]
[1725639352207,0.368569,54264.0,54258.0,0.602604]
[1725639352426,0.000815,54269.0,54265.0,0.368559]
[1725639352667,0.000815,54269.0,54266.0,0.4183]
[1725639352891,0.184274,54267.0,54266.0,0.4183]
[1725639353369,0.000815,54269.0,54266.0,0.602576]
[1725639353586,0.184272,54268.0,54266.0,0.4183]
[1725639353814,0.000815,54269.0,54266.0,0.3953]
[1725639353815,0.552822,54267.0,54266.0,0.3953]
[1725639354025,0.552822,54267.0,54265.0,0.07387]
[1725639354026,0.368554,54266.0,54261.0,0.388]
[1725639354239,0.368554,54266.0,54262.0,0.06001]
[1725639354240,0.184284,54264.0,54262.0,0.06001]
[1725639355342,0.368554,54266.0,54262.0,0.06001]
[1725639355343,0.552862,54263.0,54262.0,0.06001]
[1725639355563,1.290012,54263.0,54262.0,0.03701]
[1725639355793,0.184311,54256.0,54255.0,0.3915]
[1725639356227,0.552933,54256.0,54255.0,0.3915]
[1725639356463,0.552933,54256.0,54255.0,0.42851]
[1725639356671,0.921675,54249.0,54248.0,0.4069]
[1725639357305,0.001,54256.0,54245.0,0.00162]
[1725639357306,0.921725,54246.0,54245.0,0.00162]
[1725639357527,0.553035,54246.0,54245.0,0.00162]
[1725639358839,0.369674,54249.0,54246.0,0.03701]
[1725639359060,0.368656,54251.0,54247.0,0.023]
[1725639359285,0.184338,54248.0,54247.0,0.023]
[1725639359497,0.184338,54248.0,54245.0,0.02462]
[1725639359730,0.02888421,54254.0,54245.0,0.02462]
[1725639359980,0.185345,54246.0,54245.0,0.00162]
[1725639360207,0.553035,54246.0,54245.0,0.00162]
[1725639360445,1.60786356,54246.0,54245.0,0.00162]
[1725639360658,1.290415,54246.0,54245.0,0.00162]
[1725639361528,1.06139737,54246.0,54245.0,0.00162]
[1725639361732,1.24574237,54246.0,54245.0,0.00162]
[1725639361950,1.24674237,54246.0,54245.0,0.00162]
[1725639362177,2.17525356,54246.0,54245.0,0.00162]
[1725639362441,2.27425356,54246.0,54245.0,0.00162]
[1725639362879,1.90656356,54246.0,54245.0,0.00162]
[1725639363108,1.70886356,54246.0,54245.0,0.00162]
[1725639363313,1.391415,54246.0,54245.0,0.00162]
[1725639363526,1.390415,54246.0,54245.0,0.00162]
[1725639363972,1.392415,54246.0,54245.0,0.00162]
[1725639364408,1.391415,54246.0,54245.0,0.00162]
[1725639364853,0.922725,54246.0,54245.0,0.00162]
[1725639365076,0.001,54246.0,54245.0,0.00162]
[1725639365281,0.002,54246.0,54245.0,0.00162]
[1725639365550,0.001,54246.0,54245.0,0.00162]
[1725639365767,0.002,54246.0,54245.0,0.00162]
[1725639365984,0.001,54246.0,54245.0,0.59514338]
[1725639366208,0.000815,54258.0,54253.0,0.4157]
[1725639366473,0.000815,54258.0,54257.0,0.605026]
[1725639366693,0.000815,54258.0,54257.0,0.420718]
[1725639366930,0.000815,54258.0,54257.0,0.812334]
[1725639367189,0.000815,54258.0,54257.0,0.628026]
[1725639367405,0.478,54272.0,54261.0,0.03701]
[1725639367656,0.184287,54263.0,54262.0,0.023]
[1725639368172,0.368489,54276.0,54259.0,0.03701]
[1725639368411,0.28478749,54261.0,54259.0,0.03701]
[1725639368625,0.46908149,54261.0,54260.0,0.023]
[1725639368841,0.184297,54260.0,54259.0,0.03701]
[1725639369112,0.184301,54259.0,54258.0,0.03701]
[1725639369354,0.921505,54259.0,54258.0,0.06001]
[1725639369567,0.46673453,54269.0,54253.0,0.4157]
[1725639369568,0.552954,54254.0,54253.0,0.4157]
[1725639369780,0.46673453,54269.0,54246.0,0.3992]
[1725639369781,0.184341,54247.0,54246.0,0.3992]
[1725639369993,0.3847,54263.0,54246.0,0.3992]
[1725639369994,0.368655,54252.0,54246.0,0.3992]
[1725639370444,0.184335,54249.0,54246.0,0.3992]
[1725639370667,0.553015,54248.0,54247.0,0.03701]
[1725639370903,0.184341,54247.0,54246.0,0.3992]
[1725639371116,0.553024,54247.0,54246.0,0.3992]
[1725639371338,0.184341,54247.0,54246.0,0.3992]
[1725639371581,0.368663,54250.0,54245.0,0.00162]
[1725639371582,0.553035,54246.0,54245.0,0.00162]
[1725639371796,0.921725,54246.0,54245.0,0.00162]
[1725639372040,0.368669,54250.0,54245.0,0.00162]
[1725639372462,0.555024,54247.0,54246.0,0.019]
[1725639372674,0.554024,54247.0,54246.0,0.007]
[1725639372920,0.921725,54246.0,54245.0,0.00162]
[1725639373131,0.554035,54246.0,54245.0,0.01362]
[1725639373459,0.184345,54246.0,54245.0,0.03062]
[1725639373685,0.369668,54250.0,54245.0,0.03062]
[1725639373686,0.185342,54247.0,54245.0,0.03062]
[1725639373911,0.553035,54246.0,54245.0,0.03062]
[1725639374364,0.553035,54246.0,54245.0,0.02462]
[1725639374803,0.553035,54246.0,54245.0,0.00162]
[1725639375022,1.290415,54246.0,54245.0,0.00162]
[1725639375243,1.290415,54246.0,54245.0,0.01362]
[1725639375244,1.391415,54246.0,54245.0,0.01362]
[1725639375528,1.391415,54246.0,54245.0,0.00162]
[1725639375529,1.390415,54246.0,54245.0,0.00162]
[1725639375959,1.391415,54246.0,54245.0,0.01362]
[1725639376160,1.391415,54246.0,54245.0,0.00862]
[1725639376618,1.392415,54246.0,54245.0,0.01962]
[1725639376836,1.392415,54246.0,54245.0,0.00862]
[1725639377524,1.391415,54246.0,54245.0,0.00162]
[1725639377755,2.17074125,54246.0,54245.0,0.00462]
[1725639378015,2.17074125,54246.0,54237.0,0.00162]
[1725639378016,0.194372,54238.0,54237.0,0.00162]
[1725639378203,0.5931,54240.0,54213.0,0.00162]
[1725639378204,1.02107753,54234.0,54215.0,0.007395]
[1725639378425,0.184437,54219.0,54213.0,0.00162]
[1725639378645,1.85223353,54219.0,54213.0,0.00162]
[1725639378852,0.922252,54215.0,54213.0,0.00162]
[1725639379074,1.022252,54215.0,54213.0,0.00162]
[1725639379339,1.391153,54215.0,54213.0,0.00162]
[1725639379557,1.760054,54215.0,54213.0,0.00162]
[1725639379789,1.78580631,54215.0,54213.0,0.00162]
[1725639380221,1.81471483,54215.0,54213.0,0.00162]
[1725639380441,1.78896252,54215.0,54213.0,0.00162]
[1725639381083,1.79096252,54215.0,54214.0,0.00262]
[1725639381318,2.15942016,54215.0,54214.0,0.00262]
[1725639381546,2.16042016,54215.0,54214.0,0.00762]
[1725639381788,2.15942016,54215.0,54214.0,0.00162]
[1725639382016,2.16042016,54215.0,54214.0,0.01162]
[1725639382509,1.78896252,54215.0,54214.0,0.00162]
[1725639382740,1.78996252,54215.0,54214.0,0.00762]
[1725639382952,1.79096252,54215.0,54214.0,0.00162]
[1725639383392,1.79196252,54215.0,54214.0,0.01062]
[1725639384046,1.78996252,54215.0,54214.0,0.01062]
[1725639384299,1.761054,54215.0,54214.0,0.01062]
[1725639384519,1.392153,54215.0,54214.0,0.01262]
[1725639385498,1.291153,54215.0,54214.0,0.00162]
[1725639385750,1.292153,54215.0,54214.0,0.01062]
[1725639385994,1.291153,54215.0,54214.0,0.00462]
[1725639386501,1.292153,54215.0,54214.0,0.01462]
[1725639386771,1.392153,54215.0,54214.0,0.01462]
[1725639387683,1.023252,54215.0,54214.0,0.01462]
[1725639387903,1.392153,54215.0,54214.0,0.01462]
[1725639388115,1.761054,54215.0,54214.0,0.01462]
[1725639389622,1.761054,54215.0,54214.0,0.61782]
[1725639389623,0.001,54215.0,54214.0,0.61782]
[1725639390057,0.554351,54215.0,54214.0,0.61782]
[1725639390268,1.292153,54215.0,54214.0,0.01462]
[1725639390718,1.291153,54215.0,54214.0,0.00162]
[1725639390928,1.292153,54215.0,54214.0,0.01162]
[1725639391168,1.293153,54215.0,54214.0,0.01762]
[1725639391604,1.292153,54215.0,54214.0,0.01162]
[1725639391821,1.293153,54215.0,54214.0,0.01662]
[1725639392282,1.291153,54215.0,54214.0,0.00162]
[1725639392538,1.292153,54215.0,54214.0,0.01562]
[1725639392776,0.18645,54215.0,54214.0,0.00762]
[1725639392984,0.555351,54215.0,54214.0,0.02162]
[1725639393400,0.555351,54215.0,54214.0,0.00762]
[1725639393401,0.923252,54215.0,54214.0,0.00762]
[1725639393602,0.923252,54215.0,54214.0,0.02062]
[1725639393982,0.923252,54215.0,54214.0,0.00162]
[1725639393983,0.922252,54215.0,54214.0,0.00162]
[1725639394187,0.922252,54215.0,54214.0,0.00762]
[1725639394393,0.18545,54215.0,54214.0,0.00762]
[1725639394593,0.001,54215.0,54214.0,0.00762]
[1725639394794,0.18445,54215.0,54214.0,0.00162]
[1725639395206,0.001,54215.0,54214.0,0.00762]
[1725639395435,0.002,54215.0,54214.0,0.04462]
[1725639395639,0.0370878,54215.0,54214.0,0.02462]
[1725639395770,0.0370878,54215.0,54207.0,0.00164]
[1725639395771,0.184474,54208.0,54207.0,0.00164]
[1725639395998,0.184474,54208.0,54191.0,0.3931]
[1725639396000,1.291535,54199.0,54191.0,0.3931]
[1725639396210,0.922525,54199.0,54191.0,0.3931]
[1725639396433,0.553515,54199.0,54191.0,0.3931]
[1725639396645,0.1,54207.0,54191.0,0.3931]
[1725639396646,0.31834726,54202.0,54192.0,0.00369037]
[1725639396868,0.1,54207.0,54197.0,0.00533013]
[1725639396869,0.31834726,54207.0,54197.0,0.00533013]
[1725639397096,0.38,54208.0,54197.0,0.00533013]
[1725639397097,0.36895,54208.0,54199.0,0.5903]
[1725639397324,0.1,54214.0,54199.0,0.5903]
[1725639397325,0.1,54214.0,54200.0,0.00368968]
[1725639397575,0.18545,54215.0,54214.0,0.005]
[1725639397790,0.554351,54215.0,54214.0,0.005]
[1725639397999,0.68723726,54217.0,54203.0,0.00368921]
[1725639398222,0.31834726,54217.0,54204.0,0.023]
[1725639398474,0.31834726,54213.0,54204.0,0.023]
[1725639398687,0.184468,54210.0,54203.0,0.023]
[1725639399148,0.184471,54209.0,54203.0,0.023]
[1725639399349,0.368923,54212.0,54203.0,0.023]
[1725639399575,0.184478,54207.0,54204.0,0.002]
[1725639399768,0.368883,54218.0,54202.0,0.3931]
[1725639399769,0.184491,54203.0,54202.0,0.3931]
[1725639399909,0.553474,54203.0,54202.0,0.3931]
[1725639400345,0.553474,54203.0,54198.0,0.00013]
[1725639400346,0.922525,54199.0,54198.0,0.00013]
[1725639401424,1.291535,54199.0,54198.0,0.00013]
[1725639401628,1.291535,54199.0,54198.0,0.00213]
[1725639402056,1.391535,54199.0,54198.0,0.00013]
[1725639402466,1.391535,54199.0,54198.0,0.00113]
[1725639402889,1.392535,54199.0,54198.0,0.00813]
[1725639403517,1.56372323,54199.0,54198.0,0.00813]
[1725639403733,2.33800496,54199.0,54198.0,0.00013]
[1725639403956,2.333845,54199.0,54198.0,0.00013]
[1725639404182,2.333845,54199.0,54198.0,0.00113]
[1725639404393,2.704855,54199.0,54198.0,0.00113]
[1725639404668,3.16931926,54199.0,54198.0,0.00013]
[1725639404892,3.37379509,54199.0,54198.0,0.00013]
[1725639405100,3.30934083,54199.0,54198.0,0.00813]
[1725639405315,3.13378057,54199.0,54198.0,0.00813]
[1725639405755,3.13378057,54199.0,54198.0,0.00713]
[1725639405971,3.19823483,54199.0,54198.0,0.00013]
[1725639406207,3.19923483,54199.0,54198.0,0.00713]
[1725639406656,3.19823483,54199.0,54198.0,0.00013]
[1725639406881,3.20723483,54199.0,54198.0,0.00113]
[1725639407297,3.22023483,54199.0,54198.0,0.00213]
[1725639407715,0.032,54196.0,54195.0,0.00164]
[1725639407927,0.032,54196.0,54166.0,0.3982]
[1725639407928,0.922865,54179.0,54166.0,0.3982]
[1725639408144,1.97950426,54179.0,54166.0,0.3982]
[1725639408356,2.07950426,54179.0,54166.0,0.3982]
[1725639408564,2.10842907,54179.0,54166.0,0.3982]
[1725639409223,2.10942907,54179.0,54178.0,0.01564]
[1725639409643,2.10842907,54179.0,54178.0,0.00164]
[1725639409862,2.10842907,54179.0,54178.0,0.01564]
[1725639409863,2.10942907,54179.0,54178.0,0.01564]
[1725639410096,1.74028307,54179.0,54178.0,0.01564]
[1725639410310,0.21349781,54179.0,54178.0,0.00164]
[1725639410549,0.58364381,54179.0,54178.0,0.00164]
[1725639410771,0.923865,54179.0,54178.0,0.00164]
[1725639410995,0.184568,54181.0,54179.0,0.1863]
[1725639411243,0.369123,54183.0,54180.0,0.4007]
[1725639411244,0.18456,54183.0,54180.0,0.4007]
[1725639411457,0.39435317,54183.0,54180.0,0.4007]
[1725639411681,0.553699,54181.0,54180.0,0.4007]
[1725639411893,0.922832,54181.0,54180.0,0.4007]
[1725639412088,0.922865,54179.0,54178.0,0.00164]
[1725639412313,1.60274349,54179.0,54178.0,0.00164]
[1725639412552,2.46264004,54179.0,54178.0,0.00164]
[1725639412771,2.46464004,54179.0,54178.0,0.00164]
[1725639412974,2.44103549,54179.0,54178.0,0.00164]
[1725639413180,2.65625026,54179.0,54178.0,0.00164]
[1725639413394,2.65625026,54179.0,54160.0,0.1863]
[1725639413395,0.184634,54161.0,54160.0,0.1863]
[1725639413826,0.184634,54161.0,54160.0,0.18508522]
[1725639414030,0.1,54169.0,54160.0,0.18508522]
[1725639414244,0.79634726,54174.0,54160.0,0.18508522]
[1725639414245,0.1,54173.0,54160.0,0.18508522]
[1725639414450,0.001,54161.0,54160.0,0.18508522]
[1725639414660,0.001,54161.0,54159.0,0.38464]
[1725639414661,0.92319,54160.0,54159.0,0.00164]
[1725639414872,1.292466,54160.0,54159.0,0.00164]
[1725639415092,1.392466,54160.0,54159.0,0.00164]
[1725639415306,1.392466,54160.0,54149.0,0.0107875]
[1725639415307,1.294704,54150.0,54149.0,0.0107875]
[1725639415529,2.08039526,54150.0,54149.0,0.0107875]
[1725639415741,1.71105126,54150.0,54149.0,0.0107875]
[1725639415958,1.02336,54150.0,54149.0,0.0107875]
[1725639416184,1.05230419,54150.0,54149.0,0.0107875]
[1725639416412,0.68296019,54150.0,54149.0,0.0107875]
[1725639416626,1.05230419,54150.0,54149.0,0.0107875]
[1725639416844,1.42164819,54150.0,54149.0,0.0107875]
[1725639417276,1.42264819,54150.0,54149.0,0.0117875]
[1725639418426,0.284672,54150.0,54149.0,0.0107875]
[1725639418642,0.667016,54150.0,54149.0,0.3935875]
[1725639418858,1.406704,54150.0,54149.0,0.0207875]
[1725639419084,1.406704,54150.0,54149.0,0.0107875]
[1725639419085,1.405704,54150.0,54149.0,0.0107875]
[1725639419310,0.667016,54150.0,54149.0,0.0107875]
[1725639419528,1.04036,54150.0,54149.0,0.0107875]
[1725639419741,1.409704,54150.0,54149.0,0.0107875]
[1725639419954,1.396704,54150.0,54149.0,0.0107875]
[1725639420218,1.396704,54150.0,54149.0,0.0207875]
[1725639420219,1.03936,54150.0,54149.0,0.0207875]
[1725639420442,0.295672,54150.0,54149.0,0.6034875]
[1725639420653,0.654016,54150.0,54149.0,0.6034875]
[1725639420860,1.392704,54150.0,54149.0,0.0107875]
[1725639421072,2.4857184,54150.0,54149.0,0.0107875]
[1725639421281,2.53308039,54150.0,54149.0,0.0107875]
[1725639421486,2.4877184,54150.0,54149.0,0.0124195]
[1725639421702,2.5067184,54150.0,54149.0,0.0184195]
[1725639421931,2.355448,54150.0,54149.0,0.0214195]
[1725639422151,2.334448,54150.0,54149.0,0.0154195]
[1725639422376,2.345448,54150.0,54149.0,0.0254195]
[1725639422584,1.42164984,54150.0,54149.0,0.0154195]
[1725639422828,0.58273976,54150.0,54149.0,0.0154195]
[1725639423056,0.001,54150.0,54149.0,0.4316195]
[1725639423292,0.4141,54174.0,54153.0,0.01]
[1725639423293,0.369196,54172.0,54153.0,0.01]
[1725639423512,0.184617,54167.0,54159.0,0.1993]
[1725639423725,0.02893281,54170.0,54160.0,0.023]
[1725639423936,0.02893281,54170.0,54159.0,0.6121]
[1725639424170,0.3983,54185.0,54160.0,0.40929245]
[1725639424400,0.55430836,54180.0,54163.0,0.4056]
[1725639424620,0.21526839,54186.0,54162.0,0.1977]
[1725639424621,0.184592,54174.0,54164.0,0.02669205]
[1725639424830,0.184592,54174.0,54165.0,0.4056]
[1725639425049,0.02892774,54176.0,54165.0,0.4056]
[1725639425253,0.01926839,54186.0,54166.0,0.5801]
[1725639425462,0.46810473,54187.0,54166.0,0.5801]
[1725639425698,0.92900836,54194.0,54159.0,0.3929]
[1725639425699,0.184638,54160.0,54159.0,0.3929]
[1725639425911,0.46810473,54166.0,54154.0,0.3929]
[1725639426121,0.184655,54155.0,54154.0,0.3929]
[1725639426336,0.553965,54155.0,54154.0,0.3929]
[1725639427015,0.653965,54155.0,54154.0,0.3929]
[1725639427245,1.023275,54155.0,54154.0,0.3929]
[1725639427443,0.553984,54153.0,54152.0,0.1872]
[1725639427653,0.55381135,54153.0,54152.0,0.1872]
[1725639427870,0.46931,54155.0,54152.0,0.1872]
[1725639427871,0.1,54155.0,54152.0,0.1872]
[1725639428082,0.469311,54155.0,54152.0,0.1872]
[1725639428320,1.023277,54155.0,54154.0,0.003]
[1725639428556,1.86069273,54155.0,54154.0,0.003]
[1725639428768,1.294704,54150.0,54149.0,0.0124195]
[1725639428986,2.21930873,54150.0,54149.0,0.0124195]
[1725639429202,2.58865273,54150.0,54149.0,0.0124195]
[1725639429412,2.61865273,54150.0,54149.0,0.0124195]
[1725639429639,2.59665273,54150.0,54149.0,0.0124195]
[1725639429856,2.58665273,54150.0,54149.0,0.0124195]
[1725639430087,2.59765273,54150.0,54149.0,0.0134195]
[1725639430305,2.95457384,54150.0,54149.0,0.0134195]
[1725639430510,2.95457384,54150.0,54149.0,0.0124195]
[1725639430511,3.31291784,54150.0,54149.0,0.0124195]
[1725639430744,1.324823,54145.0,54144.0,0.00164]
[1725639430985,2.23030573,54145.0,54144.0,0.00164]
[1725639431419,2.25925378,54145.0,54144.0,0.00164]
[1725639431630,1.88987578,54145.0,54144.0,0.00164]
[1725639432100,0.184631,54162.0,54150.0,0.184672]
[1725639432347,0.8525,54172.0,54144.0,0.6085117]
[1725639432348,0.55430836,54171.0,54151.0,0.58069298]
[1725639432576,0.369244,54165.0,54152.0,0.3894]
[1725639432791,0.46810473,54179.0,54152.0,0.3894]
[1725639432792,0.46810473,54169.0,54152.0,0.3894]
[1725639433005,0.46810473,54174.0,54152.0,0.3894]
[1725639433214,0.000817,54153.0,54152.0,0.3894]
[1725639433667,0.000817,54153.0,54152.0,0.3984]
[1725639433889,0.185478,54153.0,54152.0,0.009]
[1725639434109,0.554801,54153.0,54152.0,0.009]
[1725639434346,0.924124,54153.0,54152.0,0.009]
[1725639434785,0.925124,54153.0,54152.0,0.013]
[1725639434995,0.655801,54153.0,54152.0,0.004]
[1725639435222,0.655801,54153.0,54149.0,0.001634]
[1725639435223,0.000817,54153.0,54149.0,0.001634]
[1725639435441,0.186481,54153.0,54152.0,0.013]
[1725639435672,0.186481,54153.0,54149.0,0.001634]
[1725639435673,0.184672,54150.0,54149.0,0.001634]
[1725639435935,0.184666,54152.0,54149.0,0.001634]
[1725639436146,0.012817,54153.0,54149.0,0.001634]
[1725639436370,0.012817,54153.0,54150.0,0.5597]
[1725639436577,0.013817,54153.0,54152.0,0.567995]
[1725639436790,0.001817,54153.0,54152.0,0.43764518]
[1725639436998,0.000817,54153.0,54152.0,0.60831018]
[1725639437220,0.000817,54153.0,54152.0,1.02007257]
[1725639437221,0.001817,54153.0,54152.0,1.02007257]
[1725639437480,0.92346836,54178.0,54153.0,0.19]
[1725639437701,0.92346836,54178.0,54152.0,1.78339757]
[1725639437702,0.55430836,54178.0,54170.0,0.59671]
[1725639437935,0.93290836,54194.0,54170.0,0.59671]
[1725639437936,0.55430836,54177.0,54171.0,0.3697]
[1725639438164,0.46810473,54190.0,54171.0,0.3697]
[1725639438165,0.184592,54174.0,54171.0,0.3697]
[1725639438378,0.184597,54172.0,54171.0,0.3697]
[1725639438583,0.553791,54172.0,54171.0,0.3697]
[1725639439212,0.184597,54172.0,54171.0,0.3697]
[1725639439429,0.001,54172.0,54171.0,0.012]
[1725639439860,0.184607,54169.0,54164.0,0.1856]
[1725639440067,0.184611,54168.0,54165.0,0.3576]
[1725639440295,0.553852,54166.0,54165.0,0.3576]
[1725639440503,0.184604,54170.0,54165.0,0.3576]
[1725639440732,0.002,54172.0,54165.0,0.3576]
[1725639441019,0.002,54172.0,54171.0,0.003]
[1725639441217,0.186597,54172.0,54171.0,0.003]
[1725639441432,0.184604,54170.0,54165.0,0.3576]
[1725639441672,0.184596,54173.0,54165.0,0.3576]
[1725639441908,0.001,54170.0,54165.0,0.3626]
[1725639442402,0.001,54170.0,54168.0,0.184609]
[1725639442669,0.001,54170.0,54165.0,0.3626]
[1725639442934,0.001,54170.0,54169.0,0.184607]
[1725639443204,0.184576,54179.0,54169.0,0.62275144]
[1725639443523,0.001,54170.0,54169.0,0.5675]
[1725639443993,0.369176,54175.0,54169.0,0.5675]
[1725639443994,0.184602,54171.0,54169.0,0.5675]
[1725639444273,0.46810473,54170.0,54164.0,0.03701]
[1725639444554,0.46810473,54170.0,54152.0,0.10522295]
[1725639444555,1.302228,54170.0,54169.0,0.005]
[1725639444828,1.302228,54170.0,54153.0,0.3679]
[1725639444829,0.1,54170.0,54153.0,0.3679]
[1725639445067,0.184658,54154.0,54153.0,0.3679]
[1725639445296,0.56810473,54169.0,54153.0,0.3679]
[1725639445521,0.184658,54154.0,54153.0,0.3679]
[1725639445739,0.1,54154.0,54153.0,0.3679]
[1725639446407,0.1,54154.0,54153.0,0.3769]
[1725639446408,0.284658,54154.0,54153.0,0.3769]
[1725639446610,0.1,54154.0,54153.0,0.3769]
[1725639446830,0.01,54177.0,54153.0,0.3769]
[1725639446831,0.014817,54170.0,54155.0,0.1888]
[1725639447045,0.014817,54170.0,54159.0,0.03701]
[1725639447264,0.000817,54170.0,54164.0,0.1888]
[1725639447758,0.18461,54169.0,54164.0,0.1888]
[1725639447984,0.000817,54170.0,54164.0,0.1888]
[1725639448404,0.000817,54170.0,54164.0,0.1938]
[1725639448625,0.001817,54170.0,54164.0,0.1938]
[1725639448852,0.184621,54165.0,54164.0,0.1938]
[1725639449073,0.553863,54165.0,54164.0,0.019]
[1725639449709,0.553863,54165.0,54164.0,0.014]
[1725639449915,0.553872,54164.0,54163.0,0.3738]
[1725639450348,0.184641,54159.0,54158.0,0.5554]
[1725639450974,0.184636,54161.0,54158.0,0.5554]
[1725639451180,0.369259,54163.0,54158.0,0.5554]
[1725639451181,0.184638,54160.0,54158.0,0.5554]
[1725639451828,0.369259,54163.0,54158.0,0.5554]
[1725639452045,0.184665,54152.0,54151.0,0.5651]
[1725639452257,0.553995,54152.0,54151.0,0.5651]
[1725639452471,0.1,54162.0,54151.0,0.5651]
[1725639452681,0.184646,54158.0,54151.0,0.5651]
[1725639452910,0.369303,54156.0,54151.0,0.5651]
[1725639453129,0.1,54157.0,54151.0,0.5651]